bitfinex-derivatives/quotes_BTCF0:USTF0_20240905
["timestamp","ask_amount","ask_price","bid_price","bid_amount"]
[1725525271557,0.3758,57083.0,57082.0,0.12181908]
[1725525273965,0.703396,57083.0,57082.0,0.00226255]
[1725525274359,0.790992,57083.0,57082.0,0.00226255]
[1725525275465,0.703396,57083.0,57082.0,0.00226255]
[1725525275863,0.82002464,57083.0,57082.0,0.00226255]
[1725525278065,0.76624135,57083.0,57082.0,0.00226255]
[1725525279562,0.43864535,57083.0,57082.0,0.08985955]
[1725525280969,0.4924233,57083.0,57082.0,0.08985955]
[1725525283872,0.4924233,57083.0,57082.0,0.09060955]
[1725525284283,0.66957795,57083.0,57082.0,0.09060955]
[1725525284572,0.73241804,57083.0,57082.0,0.09060955]
[1725525284759,0.62085536,57083.0,57082.0,0.09060955]
[1725525285068,0.42957795,57083.0,57082.0,0.09060955]
[1725525286162,0.60329253,57083.0,57082.0,0.09060955]
[1725525286362,0.42957795,57083.0,57082.0,0.09060955]
[1725525288070,1.2579784,57083.0,57075.0,0.01797499]
[1725525288271,0.692406,57076.0,57075.0,0.04916582]
[1725525288471,0.8090244,57076.0,57075.0,0.01797499]
[1725525288683,0.7214184,57076.0,57075.0,0.01797499]
[1725525288866,0.8090244,57076.0,57075.0,0.01797499]
[1725525289271,0.692406,57076.0,57075.0,0.01797499]
[1725525289669,0.705406,57076.0,57075.0,0.01897499]
[1725525290173,0.708406,57076.0,57075.0,0.01997499]
[1725525290878,0.708406,57076.0,57075.0,0.05227358]
[1725525291975,0.708406,57076.0,57075.0,0.01997499]
[1725525291976,1.921612,57076.0,57075.0,0.01997499]
[1725525293375,0.087614,57071.0,57070.0,7.9e-07]
[1725525293565,0.692414,57071.0,57070.0,7.9e-07]
[1725525294577,1.818094,57071.0,57070.0,7.9e-07]
[1725525294874,1.218094,57071.0,57070.0,7.9e-07]
[1725525295073,1.818094,57071.0,57070.0,7.9e-07]
[1725525295281,1.832094,57071.0,57070.0,7.9e-07]
[1725525295571,1.246094,57071.0,57070.0,7.9e-07]
[1725525296369,1.846094,57071.0,57070.0,7.9e-07]
[1725525298077,1.246094,57071.0,57070.0,7.9e-07]
[1725525298274,1.846094,57071.0,57070.0,7.9e-07]
[1725525301178,1.933708,57071.0,57070.0,7.9e-07]
[1725525302484,1.933708,57071.0,57049.0,0.0465]
[1725525302485,0.087628,57062.0,57053.0,0.087641]
[1725525302667,0.6048,57054.0,57053.0,0.087641]
[1725525303881,0.3648,57054.0,57053.0,0.327641]
[1725525304067,0.3648,57054.0,57053.0,1.541123]
[1725525304467,0.3648,57054.0,57053.0,1.213481]
[1725525304781,0.004,57054.0,57053.0,0.613481]
[1725525304968,0.004,57054.0,57053.0,0.087641]
[1725525305172,0.244,57054.0,57053.0,0.087641]
[1725525305570,0.245,57054.0,57053.0,0.087641]
[1725525306773,0.005,57054.0,57053.0,0.087641]
[1725525307283,0.245,57054.0,57053.0,0.087641]
[1725525308881,0.6058,57054.0,57053.0,0.087641]
[1725525311180,0.3658,57054.0,57053.0,0.087641]
[1725525316493,0.005,57054.0,57053.0,0.087641]
[1725525316791,0.3658,57054.0,57053.0,0.087641]
[1725525316995,0.005,57054.0,57053.0,0.087641]
[1725525317182,0.3658,57054.0,57053.0,0.087641]
[1725525326405,0.61923014,57054.0,57053.0,0.087641]
[1725525326799,0.46252614,57054.0,57053.0,0.087641]
[1725525332201,0.52539781,57054.0,57050.0,0.087645]
[1725525332409,0.191645,57051.0,57050.0,0.087645]
[1725525332599,0.38271586,57051.0,57050.0,0.087645]
[1725525332903,0.35124281,57051.0,57050.0,0.087645]
[1725525333302,0.191645,57051.0,57050.0,0.087645]
[1725525333503,0.28838253,57051.0,57050.0,0.087645]
[1725525333907,0.18838253,57051.0,57050.0,0.087645]
[1725525334113,0.38009461,57051.0,57050.0,0.087645]
[1725525334295,0.38609461,57051.0,57050.0,0.087645]
[1725525334502,0.101645,57051.0,57050.0,0.087645]
[1725525335210,0.014,57051.0,57050.0,0.087645]
[1725525335609,0.014,57051.0,57050.0,0.502937]
[1725525335812,0.014,57051.0,57050.0,0.552237]
[1725525336000,0.014,57051.0,57050.0,1.73057413]
[1725525336807,0.3608,57054.0,57053.0,0.175284]
[1725525337000,0.3608,57054.0,57053.0,0.415284]
[1725525338108,0.3768,57054.0,57053.0,0.415284]
[1725525339205,0.3608,57063.0,57058.0,0.087634]
[1725525339406,0.3608,57063.0,57058.0,0.415268]
[1725525339614,0.3608,57063.0,57058.0,0.941028]
[1725525340308,0.3608,57063.0,57058.0,0.327634]
[1725525340505,0.01326279,57059.0,57058.0,0.854394]
[1725525340810,0.01326279,57059.0,57058.0,0.328634]
[1725525341011,0.02526279,57059.0,57058.0,0.328634]
[1725525341502,0.10052268,57059.0,57058.0,0.942028]
[1725525341711,0.10052268,57059.0,57058.0,1.302828]
[1725525342313,0.10052268,57059.0,57058.0,0.854394]
[1725525342927,0.10052268,57059.0,57058.0,0.942028]
[1725525343210,0.3608,57069.0,57068.0,0.175238]
[1725525343403,0.5877861,57076.0,57075.0,0.087608]
[1725525343606,0.3608,57076.0,57075.0,0.18417418]
[1725525343813,0.3608,57082.0,57081.0,0.087599]
[1725525344313,0.2269861,57083.0,57082.0,0.087597]
[1725525344519,0.2269861,57085.0,57082.0,0.242]
[1725525344715,0.2269861,57085.0,57084.0,0.242]
[1725525345017,0.2269861,57086.0,57084.0,0.242]
[1725525345219,0.00026279,57087.0,57086.0,0.087591]
[1725525346118,0.06309329,57087.0,57086.0,0.087591]
[1725525347016,0.06309329,57087.0,57086.0,0.088591]
[1725525347622,0.07709329,57087.0,57086.0,0.089591]
[1725525348017,0.13086433,57087.0,57086.0,0.089591]
[1725525348214,0.25883613,57087.0,57086.0,0.089591]
[1725525348415,0.32166663,57087.0,57086.0,0.089591]
[1725525348714,0.32166663,57087.0,57086.0,0.12143826]
[1725525348715,0.25883613,57087.0,57086.0,0.12143826]
[1725525349129,0.06803383,57087.0,57086.0,0.12143826]
[1725525349811,0.24142074,57087.0,57086.0,0.12143826]
[1725525350722,0.06803383,57087.0,57086.0,0.12143826]
[1725525351217,0.1876497,57087.0,57086.0,0.12143826]
[1725525351421,0.11093393,57087.0,57086.0,0.12143826]
[1725525352818,0.11093393,57087.0,57086.0,0.03384726]
[1725525353817,0.11093393,57087.0,57086.0,0.12143826]
[1725525354010,0.18749498,57087.0,57086.0,0.12143826]
[1725525354314,0.28416612,57087.0,57086.0,0.12143826]
[1725525354714,0.11093393,57087.0,57086.0,0.12143826]
[1725525356524,0.17376665,57087.0,57084.0,0.19878284]
[1725525356712,0.002,57085.0,57082.0,0.002]
[1725525356917,0.002,57085.0,57084.0,0.24]
[1725525357219,0.16150539,57085.0,57084.0,0.24]
[1725525357528,0.16150539,57085.0,57084.0,0.327594]
[1725525357713,0.16150539,57085.0,57084.0,0.329594]
[1725525358327,0.17550539,57085.0,57084.0,0.329594]
[1725525359423,0.17550539,57085.0,57084.0,0.328594]
[1725525359625,0.17650539,57085.0,57084.0,0.329594]
[1725525361119,0.17650539,57085.0,57084.0,0.37546911]
[1725525361630,0.1336052,57085.0,57084.0,0.37546911]
[1725525361834,0.1336052,57085.0,57084.0,0.28787511]
[1725525362026,0.1336052,57085.0,57084.0,0.002]
[1725525362221,0.087596,57083.0,57082.0,0.02706026]
[1725525362422,0.63889416,57083.0,57079.0,0.0876]
[1725525362621,0.18849816,57082.0,57077.0,0.09431041]
[1725525362825,0.18849816,57081.0,57077.0,0.09431041]
[1725525363023,0.27721749,57078.0,57077.0,0.087605]
[1725525363333,0.46571565,57078.0,57077.0,0.327605]
[1725525363825,0.18849816,57078.0,57077.0,0.41521]
[1725525364229,0.20249816,57078.0,57077.0,0.41621]
[1725525364426,0.20349816,57078.0,57077.0,0.41721]
[1725525364623,0.015,57078.0,57077.0,0.41721]
[1725525365225,0.015,57078.0,57077.0,0.329605]
[1725525366429,0.015,57078.0,57077.0,0.41721]
[1725525366828,0.015,57078.0,57077.0,0.329605]
[1725525369638,0.015,57078.0,57077.0,0.855205]
[1725525369841,0.015,57078.0,57077.0,0.329605]
[1725525370039,0.015,57078.0,57077.0,0.41721]
[1725525370340,0.015,57078.0,57077.0,0.329605]
[1725525371839,0.015,57078.0,57077.0,0.41721]
[1725525374226,0.015,57078.0,57077.0,0.329605]
[1725525374430,0.015,57078.0,57077.0,0.41721]
[1725525376426,0.015,57078.0,57077.0,0.329605]
[1725525378535,0.06877732,57078.0,57077.0,0.329605]
[1725525379631,0.20351435,57078.0,57077.0,0.06429436]
[1725525379828,0.20351435,57078.0,57077.0,0.15189936]
[1725525380443,0.13161846,57078.0,57077.0,0.15189936]
[1725525383945,0.13161846,57078.0,57077.0,0.189605]
[1725525384444,0.21922146,57078.0,57077.0,0.102]
[1725525384646,0.21922427,57078.0,57077.0,0.102]
[1725525384842,0.44591539,57078.0,57077.0,0.102]
[1725525385241,0.44591539,57078.0,57077.0,0.002]
[1725525385446,0.087605,57077.0,57069.0,0.1]
[1725525385634,0.002,57070.0,57059.0,0.31986199]
[1725525385838,0.3608,57067.0,57066.0,0.087622]
[1725525386037,0.54931716,57067.0,57066.0,0.087622]
[1725525386752,0.3608,57067.0,57066.0,0.087622]
[1725525386944,0.3608,57067.0,57066.0,0.088622]
[1725525386945,0.3748,57067.0,57066.0,0.088622]
[1725525387250,0.3748,57067.0,57066.0,0.188622]
[1725525387941,0.3748,57067.0,57066.0,0.328622]
[1725525388545,0.3748,57067.0,57066.0,0.36057813]
[1725525388945,0.3788,57067.0,57066.0,0.36157813]
[1725525389744,0.3788,57067.0,57066.0,0.72237813]
[1725525389745,0.018,57067.0,57066.0,0.72237813]
[1725525390246,0.018,57067.0,57066.0,0.36157813]
[1725525394750,0.07178328,57067.0,57066.0,0.36157813]
[1725525395245,0.07178328,57067.0,57066.0,0.44920013]
[1725525396943,0.20955635,57067.0,57066.0,0.44920013]
[1725525397539,0.26333963,57067.0,57066.0,0.44920013]
[1725525398250,0.26333963,57067.0,57066.0,0.49420013]
[1725525399746,0.07178328,57067.0,57066.0,0.49420013]
[1725525401648,0.018,57067.0,57066.0,0.54676239]
[1725525405148,0.018,57067.0,57066.0,0.49420013]
[1725525407149,0.002,57070.0,57069.0,0.087617]
[1725525407344,0.002,57070.0,57069.0,0.417234]
[1725525407958,0.002,57070.0,57069.0,0.277234]
[1725525408558,0.005,57070.0,57069.0,0.279234]
[1725525408754,0.019,57070.0,57069.0,0.279234]
[1725525409654,0.13562728,57070.0,57069.0,0.25131061]
[1725525411047,0.13562728,57070.0,57069.0,0.61211061]
[1725525412459,0.13562728,57070.0,57069.0,0.25131061]
[1725525412760,0.13562728,57070.0,57069.0,0.61211061]
[1725525413468,0.36231365,57070.0,57069.0,0.61211061]
[1725525413769,0.13562728,57070.0,57069.0,0.61211061]
[1725525416759,0.019,57070.0,57069.0,0.61211061]
[1725525420160,0.019,57070.0,57069.0,0.66467189]
[1725525420472,0.019,57070.0,57069.0,0.61211061]
[1725525423768,0.36231039,57070.0,57069.0,0.61211061]
[1725525424866,0.13562402,57070.0,57069.0,0.61211061]
[1725525425162,0.36231039,57070.0,57069.0,0.61211061]
[1725525425964,0.13562402,57070.0,57069.0,0.61211061]
[1725525426368,0.13562402,57070.0,57069.0,0.25131061]
[1725525426570,0.13562402,57070.0,57069.0,0.61211061]
[1725525427864,0.13562402,57070.0,57069.0,0.52449361]
[1725525428867,0.13562402,57070.0,57069.0,0.16369361]
[1725525429173,0.13562402,57070.0,57069.0,0.52449361]
[1725525431065,0.13562402,57070.0,57069.0,0.42449361]
[1725525431369,0.74892002,57070.0,57069.0,0.004]
[1725525431579,0.22324002,57070.0,57069.0,0.004]
[1725525431762,0.106616,57070.0,57069.0,0.00360001]
[1725525431961,0.206616,57070.0,57069.0,0.00360001]
[1725525432173,0.732296,57070.0,57069.0,0.00360001]
[1725525432376,0.732296,57070.0,57061.0,0.00026279]
[1725525432377,0.087617,57069.0,57061.0,0.00026279]
[1725525432679,0.911228,57062.0,57061.0,0.00026279]
[1725525432864,1.436988,57062.0,57061.0,0.00026279]
[1725525433071,2.036988,57062.0,57061.0,0.00026279]
[1725525433667,2.036988,57062.0,57061.0,0.00226279]
[1725525434271,2.036988,57062.0,57061.0,0.00126279]
[1725525434470,2.036988,57062.0,57061.0,0.00226279]
[1725525434471,2.041988,57062.0,57061.0,0.00226279]
[1725525434876,1.941988,57062.0,57061.0,0.00226279]
[1725525435178,2.041988,57062.0,57061.0,0.00226279]
[1725525435370,1.941988,57062.0,57061.0,0.00226279]
[1725525435967,1.954988,57062.0,57061.0,0.00126279]
[1725525436385,0.7416,57062.0,57061.0,0.08889179]
[1725525437195,0.3808,57062.0,57061.0,0.17652079]
[1725525437374,0.02,57062.0,57061.0,0.53732079]
[1725525437682,0.02,57062.0,57061.0,0.44969179]
[1725525438084,0.00721795,57062.0,57061.0,0.77732079]
[1725525438268,0.002,57070.0,57069.0,0.087617]
[1725525438468,0.002,57070.0,57069.0,0.327617]
[1725525438673,0.002,57070.0,57069.0,0.329617]
[1725525439373,0.3608,57071.0,57070.0,0.087616]
[1725525439576,0.3608,57071.0,57070.0,0.089616]
[1725525440574,0.3888,57071.0,57070.0,0.091616]
[1725525443886,0.028,57071.0,57070.0,0.091616]
[1725525446986,0.14462317,57071.0,57070.0,0.08245441]
[1725525452884,0.14462317,57071.0,57070.0,0.04700625]
[1725525453795,0.028,57071.0,57070.0,0.04700625]
[1725525457989,0.028,57071.0,57070.0,0.14700625]
[1725525462392,0.028,57071.0,57070.0,0.04700625]
[1725525462798,1.002094,57071.0,57070.0,0.004]
[1725525462999,1.602094,57071.0,57070.0,0.004]
[1725525465001,1.602094,57071.0,57070.0,0.091616]
[1725525465502,1.602094,57071.0,57070.0,0.191616]
[1725525465503,1.51448,57071.0,57070.0,0.191616]
[1725525465696,0.3888,57071.0,57070.0,0.191616]
[1725525467105,0.3888,57071.0,57070.0,0.091616]
[1725525467494,0.476414,57071.0,57070.0,0.091616]
[1725525467695,0.476414,57071.0,57070.0,0.004]
[1725525467696,1.602094,57071.0,57070.0,0.004]
[1725525469005,1.71874511,57071.0,57070.0,0.00049192]
[1725525470805,1.71874511,57071.0,57070.0,0.08810792]
[1725525472007,0.59306511,57071.0,57070.0,0.18810792]
[1725525472407,0.59306511,57071.0,57070.0,0.08810792]
[1725525473003,0.69306511,57071.0,57070.0,0.08810792]
[1725525473409,0.69306308,57071.0,57070.0,0.08810792]
[1725525473611,0.69306308,57071.0,57070.0,0.00049192]
[1725525473612,1.81874308,57071.0,57070.0,0.00049192]
[1725525474705,1.87354931,57071.0,57070.0,0.00049192]
[1725525475011,0.087617,57069.0,57068.0,0.07619085]
[1725525475210,0.30626608,57069.0,57068.0,0.07619085]
[1725525475408,1.43194608,57069.0,57068.0,0.07619085]
[1725525475911,1.57194608,57069.0,57068.0,0.07619085]
[1725525476404,1.62675231,57069.0,57068.0,0.07619085]
[1725525476810,1.63975231,57069.0,57068.0,0.07819085]
[1725525477111,1.52310323,57069.0,57068.0,0.07819085]
[1725525477307,0.15742323,57069.0,57068.0,0.07819085]
[1725525477713,0.102617,57069.0,57068.0,0.07819085]
[1725525478116,0.342617,57069.0,57068.0,0.07819085]
[1725525482814,0.102617,57069.0,57068.0,0.07819085]
[1725525483113,0.015,57069.0,57068.0,0.07819085]
[1725525483911,0.06879142,57069.0,57068.0,0.07819085]
[1725525484115,0.13164627,57069.0,57068.0,0.07819085]
[1725525485526,0.06879142,57069.0,57068.0,0.07819085]
[1725525488415,0.13164627,57069.0,57068.0,0.002]
[1725525488911,0.13164627,57069.0,57068.0,0.089618]
[1725525491215,0.06879142,57069.0,57068.0,0.089618]
[1725525491917,0.015,57069.0,57068.0,0.089618]
[1725525494217,0.342617,57069.0,57068.0,0.089618]
[1725525496030,0.202617,57069.0,57068.0,0.089618]
[1725525496332,0.563417,57069.0,57068.0,0.089618]
[1725525497820,0.463417,57069.0,57068.0,0.089618]
[1725525499024,0.58006554,57069.0,57068.0,0.089618]
[1725525499428,0.49244854,57069.0,57068.0,0.089618]
[1725525502332,0.4924477,57069.0,57068.0,0.089618]
[1725525502733,0.6800647,57069.0,57068.0,0.002]
[1725525503234,0.99424855,57069.0,57068.0,0.002]
[1725525503634,1.8933617,57069.0,57068.0,0.002]
[1725525504024,1.96528138,57069.0,57068.0,0.002]
[1725525504532,2.02009046,57069.0,57068.0,0.002]
[1725525504725,2.02009046,57069.0,57068.0,0.00180001]
[1725525506142,2.16009046,57069.0,57068.0,0.00180001]
[1725525507036,1.97152308,57069.0,57068.0,0.00180001]
[1725525507438,1.916714,57069.0,57068.0,0.00180001]
[1725525512030,2.004331,57069.0,57068.0,1e-08]
[1725525512247,2.004331,57069.0,57061.0,0.00026279]
[1725525512248,0.175256,57062.0,57061.0,0.00026279]
[1725525512546,0.778056,57062.0,57061.0,0.00026279]
[1725525512840,2.082344,57062.0,57061.0,0.00026279]
[1725525513548,0.17528,57054.0,57039.0,0.046]
[1725525513744,0.087662,57040.0,57039.0,0.046]
[1725525514040,0.74628072,57040.0,57039.0,0.046]
[1725525514233,0.56916747,57040.0,57039.0,0.046]
[1725525514430,0.80516747,57040.0,57039.0,0.046]
[1725525515136,0.65461872,57040.0,57039.0,0.046]
[1725525515345,0.65461872,57040.0,57039.0,0.16456569]
[1725525516448,0.82821768,57040.0,57039.0,0.16456569]
[1725525516745,0.58821768,57040.0,57039.0,0.16556569]
[1725525516934,0.41461872,57040.0,57039.0,0.16556569]
[1725525518738,0.58821768,57040.0,57039.0,0.16556569]
[1725525519045,0.41461872,57040.0,57039.0,0.16556569]
[1725525520839,0.47750578,57040.0,57039.0,0.16556569]
[1725525521444,0.60537365,57040.0,57039.0,0.16556569]
[1725525521641,0.66826071,57040.0,57039.0,0.16556569]
[1725525521838,0.47750578,57040.0,57039.0,0.16556569]
[1725525522039,0.3608,57040.0,57039.0,0.16556569]
[1725525527041,0.448462,57040.0,57039.0,0.16556569]
[1725525530559,0.3608,57040.0,57039.0,0.40556569]
[1725525531047,0.3608,57040.0,57039.0,0.16556569]
[1725525538750,0.448462,57040.0,57039.0,0.16556569]
[1725525538950,0.3608,57040.0,57039.0,0.16556569]
[1725525541556,0.41462013,57040.0,57039.0,0.16556569]
[1725525541753,0.05382013,57040.0,57039.0,0.16556569]
[1725525541954,0.50228213,57040.0,57039.0,0.16556569]
[1725525543061,0.62188525,57040.0,57039.0,0.03190269]
[1725525543358,0.6397466,57040.0,57039.0,0.001]
[1725525543549,0.8797466,57040.0,57039.0,0.001]
[1725525543952,1.05316985,57040.0,57039.0,0.001]
[1725525544168,0.825924,57040.0,57039.0,0.001]
[1725525544350,0.825924,57040.0,57032.0,0.087673]
[1725525544351,0.087665,57038.0,57037.0,0.03086792]
[1725525544648,0.087675,57032.0,57025.0,0.0474]
[1725525544963,0.004,57026.0,57025.0,0.16609189]
[1725525546847,0.008,57026.0,57025.0,0.11869189]
[1725525547249,0.012,57026.0,57025.0,0.11869189]
[1725525547459,0.012,57026.0,57025.0,0.10974189]
[1725525549658,0.012,57026.0,57025.0,0.34974189]
[1725525549862,0.00026302,57031.0,57025.0,0.32357924]
[1725525550064,0.00026302,57031.0,57029.0,0.087678]
[1725525551362,0.00826302,57031.0,57029.0,0.087678]
[1725525551664,0.01226302,57031.0,57029.0,0.087678]
[1725525551861,0.01226302,57031.0,57030.0,0.087677]
[1725525552263,0.00826302,57031.0,57030.0,0.087677]
[1725525552457,0.01726302,57031.0,57030.0,0.087677]
[1725525553258,0.01826302,57031.0,57030.0,0.088677]
[1725525553656,0.01726302,57031.0,57030.0,0.615717]
[1725525556665,0.01726302,57031.0,57030.0,0.089677]
[1725525558763,0.01726302,57031.0,57030.0,0.08423558]
[1725525559166,0.13397638,57031.0,57030.0,0.08423558]
[1725525559764,0.13397631,57031.0,57029.0,0.03413558]
[1725525559967,0.11871329,57030.0,57029.0,0.12181458]
[1725525560160,0.11871329,57030.0,57029.0,0.82181458]
[1725525560363,0.11871329,57030.0,57029.0,1.34785458]
[1725525561465,0.11871329,57030.0,57029.0,0.74885458]
[1725525561660,0.11871329,57030.0,57029.0,0.74985458]
[1725525562061,0.01915402,57030.0,57029.0,0.74985458]
[1725525562764,0.01915402,57030.0,57029.0,0.74885458]
[1725525562970,0.011,57030.0,57029.0,0.74985458]
[1725525563176,0.019,57030.0,57029.0,0.74885458]
[1725525563466,0.00026302,57031.0,57030.0,0.087677]
[1725525564176,0.00026302,57031.0,57030.0,0.089677]
[1725525564758,0.01926302,57031.0,57030.0,0.178354]
[1725525564959,0.01926302,57031.0,57030.0,0.190677]
[1725525565169,0.08215495,57031.0,57030.0,0.16790862]
[1725525565473,0.08215495,57031.0,57030.0,0.003]
[1725525565675,0.16983095,57031.0,57030.0,0.103]
[1725525565876,0.08215495,57031.0,57030.0,0.103]
[1725525566568,0.16983095,57031.0,57030.0,0.103]
[1725525567072,0.10693902,57031.0,57030.0,0.103]
[1725525568093,0.10693902,57031.0,57030.0,0.003]
[1725525574174,0.22366575,57031.0,57030.0,0.003]
[1725525575079,0.22366578,57031.0,57030.0,0.003]
[1725525576372,0.31134178,57031.0,57030.0,0.003]
[1725525577382,0.67214178,57031.0,57030.0,0.003]
[1725525577676,0.087682,57027.0,57026.0,0.006]
[1725525577877,0.38351055,57027.0,57026.0,0.006]
[1725525578184,0.44640876,57027.0,57026.0,0.006]
[1725525578373,0.49430876,57027.0,57026.0,0.006]
[1725525578879,0.49930876,57027.0,57026.0,0.006]
[1725525579776,0.50331405,57027.0,57026.0,0.006]
[1725525580781,0.86411405,57027.0,57026.0,0.006]
[1725525581780,0.48853205,57027.0,57026.0,0.333683]
[1725525582084,0.10577743,57027.0,57026.0,1.459763]
[1725525582273,0.10577743,57027.0,57026.0,0.333683]
[1725525582274,0.009,57027.0,57026.0,0.333683]
[1725525582678,0.009,57027.0,57026.0,0.093683]
[1725525583281,0.009,57027.0,57024.0,0.11850493]
[1725525583282,0.087685,57025.0,57024.0,0.11850493]
[1725525583479,0.3698,57027.0,57025.0,0.087684]
[1725525583686,0.3698,57027.0,57026.0,0.002]
[1725525584582,0.3608,57027.0,57026.0,0.002]
[1725525585376,0.3658,57027.0,57026.0,0.002]
[1725525586081,0.3658,57027.0,57026.0,0.089683]
[1725525586586,0.3688,57027.0,57026.0,0.089683]
[1725525589286,0.48552722,57027.0,57026.0,0.089683]
[1725525589975,0.48552722,57027.0,57026.0,0.189683]
[1725525590179,0.48552722,57027.0,57026.0,0.089683]
[1725525590393,0.48552722,57027.0,57026.0,0.189683]
[1725525592487,0.12472722,57027.0,57026.0,0.277366]
[1725525592689,0.06182875,57027.0,57026.0,0.277366]
[1725525592886,0.06182875,57027.0,57026.0,0.323366]
[1725525593189,0.06182875,57027.0,57026.0,0.849446]
[1725525593487,0.06182875,57027.0,57026.0,0.323366]
[1725525593789,0.06182875,57027.0,57026.0,0.235683]
[1725525594992,0.06182875,57027.0,57026.0,0.189683]
[1725525595885,0.06182875,57027.0,57026.0,0.329683]
[1725525597294,0.008,57027.0,57026.0,0.690483]
[1725525597697,0.008,57027.0,57026.0,0.74305535]
[1725525597993,0.008,57027.0,57026.0,1.35681835]
[1725525598990,0.008,57027.0,57026.0,1.304246]
[1725525599588,0.008,57027.0,57026.0,0.778166]
[1725525600191,0.008,57027.0,57026.0,0.83073835]
[1725525600396,0.008,57027.0,57026.0,0.778166]
[1725525601291,0.008,57027.0,57026.0,0.83073835]
[1725525601603,0.008,57027.0,57026.0,0.74305535]
[1725525601799,0.008,57027.0,57026.0,0.690483]
[1725525609099,0.008,57027.0,57026.0,0.329683]
[1725525612306,0.06182751,57027.0,57026.0,0.329683]
[1725525615918,0.06182751,57027.0,57026.0,0.189683]
[1725525618617,0.06182771,57027.0,57026.0,0.189683]
[1725525618811,0.06182771,57027.0,57026.0,0.277366]
[1725525619016,0.05199082,57028.0,57027.0,0.175364]
[1725525619317,0.00026302,57031.0,57030.0,0.087677]
[1725525619525,0.00026302,57031.0,57030.0,0.187677]
[1725525620128,0.44874002,57031.0,57027.0,0.087681]
[1725525620318,0.004,57028.0,57027.0,0.187681]
[1725525621323,0.004,57028.0,57027.0,0.087681]
[1725525621622,0.008,57028.0,57027.0,0.187681]
[1725525623315,0.008,57028.0,57027.0,0.548481]
[1725525626124,0.008,57028.0,57027.0,0.60105335]
[1725525626327,0.00026302,57031.0,57030.0,0.087677]
[1725525626630,0.00026302,57031.0,57030.0,0.187677]
[1725525627325,0.05408511,57031.0,57030.0,0.187677]
[1725525628221,0.06108511,57031.0,57030.0,0.188677]
[1725525628828,0.06208511,57031.0,57030.0,0.189677]
[1725525629627,0.22638376,57037.0,57030.0,0.189677]
[1725525629825,0.22638376,57037.0,57036.0,0.548468]
[1725525630027,0.09674611,57037.0,57036.0,0.548468]
[1725525630526,0.05381333,57037.0,57036.0,0.548468]
[1725525631828,0.05581333,57037.0,57036.0,0.548468]
[1725525632022,0.05581333,57037.0,57036.0,0.448468]
[1725525632216,0.05381333,57037.0,57036.0,0.548468]
[1725525632417,0.05581333,57037.0,57036.0,0.549468]
[1725525632624,0.05581333,57037.0,57036.0,0.550468]
[1725525634423,0.002,57037.0,57036.0,0.550468]
[1725525634626,0.002,57037.0,57036.0,0.58150319]
[1725525646132,0.002,57037.0,57036.0,0.66917119]
[1725525646737,0.00026302,57042.0,57041.0,0.08766]
[1725525646939,0.00026302,57042.0,57041.0,0.18766]
[1725525648027,0.00226302,57042.0,57041.0,0.18866]
[1725525648235,0.00226302,57042.0,57041.0,0.18966]
[1725525649129,0.00226302,57042.0,57041.0,0.63812]
[1725525649331,0.0651398,57042.0,57041.0,0.27732]
[1725525649536,0.11894999,57042.0,57041.0,0.27732]
[1725525649738,0.34533375,57042.0,57041.0,0.63812]
[1725525650943,0.34533375,57042.0,57041.0,0.64012]
[1725525651143,0.11894999,57042.0,57041.0,0.64012]
[1725525651838,0.10644247,57042.0,57041.0,0.64012]
[1725525652239,0.17838584,57042.0,57041.0,0.64012]
[1725525653141,0.17838442,57042.0,57041.0,0.64012]
[1725525654539,0.14482442,57042.0,57041.0,0.64012]
[1725525654742,0.12673186,57042.0,57041.0,0.64012]
[1725525655338,0.12673186,57042.0,57041.0,0.45046]
[1725525655541,0.12673186,57042.0,57041.0,0.55046]
[1725525655843,0.12673186,57042.0,57041.0,0.63812]
[1725525656038,0.08973186,57042.0,57041.0,0.63812]
[1725525656237,0.05380877,57042.0,57041.0,0.63812]
[1725525656429,0.64093556,57046.0,57045.0,0.087654]
[1725525656633,0.64093556,57046.0,57045.0,0.189654]
[1725525656634,0.3608,57046.0,57045.0,0.189654]
[1725525657634,0.3618,57046.0,57045.0,0.190654]
[1725525658138,0.3618,57046.0,57045.0,0.191654]
[1725525659436,0.3618,57046.0,57045.0,0.22283692]
[1725525663047,0.00026302,57047.0,57046.0,0.087652]
[1725525663352,1e-08,57047.0,57046.0,0.177304]
[1725525663742,0.0953,57057.0,57056.0,0.087637]
[1725525664047,0.0953,57057.0,57056.0,0.189637]
[1725525664544,0.21196485,57057.0,57056.0,0.189637]
[1725525664741,0.21196485,57057.0,57056.0,0.17067331]
[1725525664941,0.29960085,57057.0,57056.0,0.102]
[1725525665446,0.30060085,57057.0,57056.0,0.103]
[1725525666042,0.30060085,57057.0,57056.0,0.190637]
[1725525666043,0.21296485,57057.0,57056.0,0.190637]
[1725525666544,0.21296853,57057.0,57056.0,0.190637]
[1725525667049,0.21296853,57057.0,57056.0,0.2238208]
[1725525670845,0.21296853,57057.0,57056.0,0.19264792]
[1725525671037,0.30060453,57057.0,57056.0,0.19264792]
[1725525671239,0.30060453,57057.0,57056.0,0.1238208]
[1725525671440,0.23773967,57057.0,57056.0,0.1238208]
[1725525671637,0.86353967,57057.0,57056.0,0.0361838]
[1725525671846,1.61404993,57057.0,57056.0,0.001]
[1725525672154,1.8056276,57057.0,57056.0,0.001]
[1725525672450,1.61404993,57057.0,57056.0,0.001]
[1725525673048,1.55117567,57057.0,57056.0,0.001]
[1725525673651,1.46353967,57057.0,57056.0,0.001]
[1725525673953,0.15010367,57057.0,57056.0,0.188637]
[1725525675748,0.15010367,57057.0,57056.0,0.001]
[1725525675749,1.46353967,57057.0,57056.0,0.001]
[1725525678148,1.52641202,57057.0,57056.0,0.001]
[1725525679555,1.52641202,57057.0,57054.0,0.08764]
[1725525679556,0.087639,57055.0,57054.0,0.06655017]
[1725525679856,0.27825333,57055.0,57054.0,0.06655017]
[1725525680547,0.27825333,57055.0,57054.0,0.16655017]
[1725525680754,0.27925333,57055.0,57054.0,0.16755017]